[Event "12th WLC Weekend 2022"]
[Site "Eindhoven"]
[Date "2022.05.15"]
[Round "5.10"]
[White "Slagboom, Leandro"]
[Black "Koster, Chiel"]
[Result "0-1"]
[ECO "E06"]
[WhiteElo "1997"]
[BlackElo "1924"]
[Annotator "TA"]
[PlyCount "84"]
[EventDate "2022.05.13"]
[EventType "swiss"]
[EventCountry "NED"]
[SourceTitle "playchess.com"]
[Source "ChessBase"]
[SourceQuality "1"]
[TimeControl "5400+30"]

{[%evp 16,84,15,5,17,13,57,61,101,65,69,64,66,69,64,57,70,73,67,79,97,63,60,24,32,-33,-42,-114,32,35,35,-60,-76,-97,-85,-99,-98,-91,-87,-101,-88,-94,-104,-92,-87,-109,-36,-82,0,-87,-58,-53,78,-94,-83,-335,-312,-366,-142,-866,-736,-736,-729,-859,-841,-29986,-29987,-29987,-29988,-29993,-29994]} 1. d4 {[%emt 0:00:03]} Nf6 {[%emt 0:00:08]} 2. c4 {[%emt 0:00:08]} e6 {[%emt 0:00:05]} 3. Nf3 {[%emt 0:00:09]} d5 {[%emt 0:00:07]} 4. g3 {[%emt 0:00:07]} c6 {[%emt 0:00:35]} 5. Bg2 {[%emt 0:00:18]} Be7 {[%emt 0:00:44]} 6. O-O {[%emt 0:00:14]} O-O {[%emt 0:00:09]} 7. Qc2 {[%emt 0:00:33]} b6 $1 {[%emt 0:01:21][%mdl 4] is more profitable than 7...Nbd7 at the moment.} 8. Nbd2 {[%emt 0:00:27][%cal Bb1d2,Bd2c4,Bc4e3][%mdl 32]} Bb7 {[%emt 0:01:41]} 9. e4 {[%emt 0:05:53]} dxc4 {[%emt 0:04:24] E06: Closed Catalan: Early deviations.} 10. Nxc4 {[%emt 0:11:02]} h6 {[%emt 0:07:22]} 11. Rd1 $1 {[%emt 0:10:30]} Nbd7 {[%emt 0:03:42] [#] White is slightly better.} 12. Ne3 $146 {[%emt 0:06:27]} ({Predecessor:} 12. Bf4 c5 13. d5 exd5 14. exd5 Bxd5 15. Rd2 Qc8 16. Rad1 Bc6 17. Nd6 Bxd6 18. Rxd6 {0-1 (33) Molenda,M (2373)-Maciejczak,J (2383) Jastrzebia Gora 2019}) 12... Rc8 {[%emt 0:02:43]} 13. b3 {[%emt 0:02:28]} Qc7 {[%emt 0:05:42]} 14. Bb2 {[%emt 0:01:03]} Rfd8 {[%emt 0:00:29]} 15. Rac1 {[%emt 0:04:09][%cal Od4d5]} Qb8 {[%emt 0:00:32]} 16. Ne1 {[%emt 0:06:36]} Qa8 {[%emt 0:09:36]} 17. f4 {[%emt 0:05:00]} Nf8 {[%emt 0:05:07]} 18. Qd2 {[%emt 0:04:31]} Rd7 {[%emt 0:01:47]} 19. e5 {[%emt 0:00:59]} Ne8 {[%emt 0:05:38]} 20. f5 {[%emt 0:07:12]} (20. Be4 $14) 20... exf5 $15 {[%emt 0:02:02]} 21. h4 {[%emt 0:02:19] [#]} (21. Nxf5 $15 Bg5 22. Qc3) 21... Ne6 {[%emt 0:01:57]} (21... g6 $1 $17 22. h5 Ne6) 22. Nxf5 $14 {[%emt 0:01:20]} Bf8 {[%emt 0:00:05]} 23. Bf3 {[%emt 0:12:46]} (23. Qf2 $14) 23... Rcd8 $15 {[%emt 0:02:31]} 24. Qg2 {[%emt 0:04:43][%cal Rf3c6]} g6 {[%emt 0:00:54]} 25. d5 {[%emt 0:06:35]} cxd5 {[%emt 0:01:09]} ({Don't play} 25... gxf5 $6 26. g4 Nf4 27. Qg3 Nxd5 28. gxf5+ Kh7 29. Rxd5 cxd5 30. e6) 26. Nd4 {[%emt 0:00:32]} Bc5 {[%emt 0:03:08]} 27. Kh2 {[%emt 0:00:41]} Nxd4 {[%emt 0:03:21]} 28. Bxd4 {[%emt 0:00:16]} Bxd4 {[%emt 0:00:20]} 29. Rxd4 {[%emt 0:00:02]} Re7 {[%emt 0:00:22]} 30. Nd3 {[%emt 0:02:05]} Nc7 {[%emt 0:01:02]} ({Better is} 30... Ng7 $17 31. Bg4 h5) 31. Bg4 {[%emt 0:03:35]} (31. Nf4 $1 $15) 31... Nb5 {[%emt 0:01:26]} ({Black should try} 31... Ne6 $17 32. Bxe6 Rxe6) 32. Rb4 {[%emt 0:00:17] [#]} (32. Rf4 $11) 32... d4 $1 {[%emt 0:00:14]} 33. Qf2 {[%emt 0:00:35]} Be4 {[%emt 0:01:14]} (33... Nc3 $1 $15 {stays ahead.}) 34. Qd2 $2 {[%emt 0:01:48]} (34. Qf6 $16 {is necessary to keep the advantage.} Bxd3 35. Qxe7) 34... Nc3 $36 {[%emt 0:05:48][%mdl 2048] ...Bxd3 is the strong threat. Black is in control.} 35. Nf2 {[%emt 0:00:14][%mdl 8192]} (35. Nf4 $17 {only move.}) 35... Qd5 $19 {[%emt 0:04:15]} ({Much less strong is} 35... Rxe5 36. Rxd4 Red5 37. Rxd5 Qxd5 38. Qxc3 $18) 36. Qxh6 {[%emt 0:02:06]} Nxa2 $2 {[%emt 0:00:48] Active counter play!} (36... Rxe5 $19 {and Black stays clearly on top.} 37. Rc4 Bf3) 37. e6 $2 {[%emt 0:00:43][%mdl 8192] This costs White the game.} (37. Re1 $17 Bh1 38. Bh3) 37... Nxc1 {[%emt 0:01:24]} 38. Qxc1 {[%emt 0:00:30]} f5 {[%emt 0:00:56]} 39. Qg5 {[%emt 0:00:24]} Qxe6 {[%emt 0:03:41]} 40. Nxe4 {[%emt 0:00:22]} fxg4 {[%emt 0:01:34] Black mates.} 41. Nf6+ {[%emt 0:00:43]} Kf7 {[%emt 0:00:14]} 42. Nxg4 {[%emt 0:00:26]} Qe2+ {[%emt 0:00:06] Weighted Error Value: White=0.77/Black=0.33} 0-1

[Event "12th WLC Weekend 2022"]
[Site "Eindhoven"]
[Date "2022.05.15"]
[Round "5.11"]
[White "Coenen, Eduard"]
[Black "Verhoeven, Robin"]
[Result "1-0"]
[ECO "A80"]
[WhiteElo "2030"]
[BlackElo "1946"]
[Annotator "TA"]
[PlyCount "79"]
[EventDate "2022.05.13"]
[EventType "swiss"]
[EventCountry "NED"]
[SourceTitle "playchess.com"]
[Source "ChessBase"]
[SourceQuality "1"]
[TimeControl "5400+30"]

{[%evp 9,79,20,19,14,20,21,24,4,17,-76,-76,-54,-52,-92,-90,-87,-75,-89,-12,-118,-106,-142,-150,-149,-28,-18,-32,-167,-64,-160,-150,-463,-485,-481,-475,-502,-502,-455,-436,-427,-389,-449,-434,-473,-444,-896,-896,-5119,674,567,635,340,651,611,623,564,4714,1087,1453,1521,1345,1099,29982,29983,29985,29984,29984,29985,29985,29986,29986,29983]} 1. d4 {[%emt 0:01:06]} f5 {[%emt 0:00:05]} 2. Nf3 {[%emt 0:00:37]} Nf6 {[%emt 0:00:06]} 3. Bf4 {[%emt 0:00:18]} g6 {[%emt 0:00:42]} 4. h3 {[%emt 0:01:21]} Bg7 {[%emt 0:00:26]} 5. e3 {[%emt 0:00:21]} O-O {[%emt 0:01:09]} 6. Nc3 {[%emt 0:03:17] A80: Dutch Defence: Unusual White second moves.} d6 {[%emt 0:02:27]} 7. Bc4+ {[%emt 0:02:26]} Kh8 {[%emt 0:02:55]} 8. Qe2 {[%emt 0:08:30] [#] White has an edge.} c6 $146 {[%emt 0:01:59]} ({Predecessor:} 8... Qe8 9. O-O-O Nbd7 10. Rdg1 e5 11. Bh2 a5 12. g4 c6 13. dxe5 dxe5 14. a4 b6 15. gxf5 gxf5 {1-0 (26) Pribyl,V (1781)-Hlavina,M (1311) Kouty nad Desnou 2015}) 9. g4 {[%emt 0:02:13]} (9. O-O) (9. Bb3 $11) 9... b5 {[%emt 0:05:56]} (9... Ne4 {is interesting.} 10. Rd1 Qa5 11. Ng5 d5) 10. Bd3 {[%emt 0:01:39]} Qa5 {[%emt 0:01:20]} 11. Nd2 {[%emt 0:05:16] [#]} b4 $1 {[%emt 0:03:47]} 12. Nc4 {[%emt 0:06:55]} Qc7 {[%emt 0:00:25]} 13. Nb1 {[%emt 0:00:32]} (13. g5 Nh5 14. Nd1 Bb7 $19) 13... Nd5 {[%emt 0:02:39]} (13... c5 $17 {Threatens to win with ...cxd4.} 14. gxf5 Bxf5 15. Bxf5 gxf5 16. dxc5 Qxc5) 14. Bg3 {[%emt 0:08:41]} (14. Bg5 $11 {keeps the balance.}) 14... f4 $17 {[%emt 0:03:51]} 15. Bh2 {[%emt 0:01:27]} fxe3 {[%emt 0:03:18]} 16. fxe3 {[%emt 0:00:53] [#]} Bb7 {[%emt 0:01:57]} (16... c5 $1 $17 17. Be4 Bb7) 17. Nbd2 $11 {[%emt 0:02:08]} Nd7 {[%emt 0:13:36]} 18. Ne4 {[%emt 0:02:29]} ({White should play} 18. h4 $15) 18... N7b6 {[%emt 0:03:27]} (18... c5 $19 {...N5b6 is the strong threat.} 19. O-O-O cxd4 20. exd4 Nf4 21. Bxf4 Rxf4) 19. Nxb6 {[%emt 0:04:19]} (19. Ncxd6 $15 exd6 20. Bxd6) 19... axb6 $17 {[%emt 0:03:36]} 20. h4 $2 {[%emt 0:00:21]} (20. Ng5 $17 {nothing else works.} Qd7 21. Rf1) 20... c5 $19 {[%emt 0:01:30]} 21. h5 {[%emt 0:01:54] And now hxg6 would win.} c4 {[%emt 0:08:45]} 22. hxg6 {[%emt 0:13:05][%cal Og4g5] Strongly threatening g5!} cxd3 {[%emt 0:02:01]} 23. cxd3 {[%emt 0:10:37]} Nf6 {[%emt 0:02:51]} 24. Bf4 {[%emt 0:02:41]} Nxe4 {[%emt 0:03:47]} 25. Rxh7+ {[%emt 0:01:39]} Kg8 {[%emt 0:00:11]} 26. Qh2 {[%emt 0:03:50][%cal Oh7h8] White threatens Rh8+! and mate.} e5 {[%emt 0:14:17]} (26... Nf6 27. g5 Rxa2 28. Rxg7+ Kxg7 29. gxf6+ Kxf6 30. Rxa2 (30. Qh4+ Kxg6 31. Qg5+ Kf7 $15) 30... Qc1+ 31. Kf2 $11) 27. Bh6 {[%emt 0:03:47] [#]} (27. dxe5 $142 Nc5 28. exd6) 27... Rxa2 $3 {[%emt 0:02:19][%mdl 512]} 28. Rd1 {[%emt 0:00:45]} (28. Rxg7+ Qxg7) 28... Qc3+ $4 {[%emt 0:12:37][%mdl 8192]} 29. bxc3 $18 {[%emt 0:03:11][%mdl 64] Discovered Attack} Rxh2 {[%emt 0:00:05]} 30. Rxg7+ {[%emt 0:00:28]} Kh8 {[%emt 0:00:04]} 31. Rh7+ {[%emt 0:00:57]} (31. dxe4 Rh1+ 32. Kd2 Rf2+ 33. Kc1 Rhh2 34. Rxb7 Rc2+ 35. Kb1 Rb2+ 36. Ka1 Ra2+ 37. Kb1 Rab2+ 38. Ka1 Ra2+ 39. Kb1 Rab2+ $11) 31... Kg8 {[%emt 0:00:03] ( -> ...Rh1+)} 32. Bxf8 {[%emt 0:00:50][%mdl 64] Discovered Attack} ({Weaker is} 32. dxe4 Rh1+ 33. Ke2 Ba6+ 34. Kd2 Rf2+ 35. Kc1 b3 36. Rg7+ (36. Rxh1 {leads to mate.} b2+ 37. Kb1 Bd3+ 38. Ka2 b1=Q+ 39. Ka3 Ra2#) 36... Kh8 37. Rh7+ (37. Rxh1 b2+ 38. Kb1 Bd3+ 39. Ka2 b1=Q+ 40. Ka3 Ra2#) 37... Kg8 38. Rg7+ (38. Rxh1 b2+ 39. Kb1 Bd3+ 40. Ka2 b1=Q+ 41. Ka3 Ra2#) 38... Kh8 39. Rh7+ (39. Rxh1 {is a self mate.} b2+ 40. Kb1 Bd3+ 41. Ka2 b1=Q+ 42. Ka3 Ra2#) 39... Kg8 $11) 32... Rg2 {[%emt 0:01:18]} 33. dxe4 {[%emt 0:00:54]} Ba6 {[%emt 0:00:55]} 34. Rd2 {[%emt 0:01:38]} Rxg4 {[%emt 0:00:56]} 35. Ra2 {[%emt 0:01:15]} b3 {[%emt 0:00:43]} 36. Rxa6 {[%emt 0:00:40] White mates.} b2 {[%emt 0:00:16] [#]} 37. Rxb6 $1 {[%emt 0:00:11]} b1=Q+ {[%emt 0:00:16]} (37... b1=R+ 38. Rxb1) 38. Rxb1 {[%emt 0:00:08]} Rg1+ {[%emt 0:00:03]} 39. Kf2 {[%emt 0:00:13]} Rxb1 {[%emt 0:00:03]} 40. Bxd6 {[%emt 0:00:08] What a bad dream for Black.  Weighted Error Value: White=0.72/Black=0.52} 1-0

[Event "12th WLC Weekend 2022"]
[Site "Eindhoven"]
[Date "2022.05.15"]
[Round "5.12"]
[White "Becx, Cesar"]
[Black "Iolis, Oleg"]
[Result "1/2-1/2"]
[ECO "A03"]
[WhiteElo "2101"]
[BlackElo "2201"]
[Annotator "TA"]
[PlyCount "54"]
[EventDate "2022.05.13"]
[EventType "swiss"]
[EventCountry "NED"]
[SourceTitle "playchess.com"]
[Source "ChessBase"]
[SourceQuality "1"]
[TimeControl "5400+30"]

{[%evp 14,54,0,-6,0,-11,-13,-22,56,62,103,100,132,119,129,137,179,165,168,150,162,170,168,151,158,73,102,112,163,77,77,66,71,81,283,68,68,0,268,283,257,278,268]} 1. f4 {[%emt 0:00:02]} c5 {[%emt 0:00:35]} 2. Nf3 {[%emt 0:00:04]} Nf6 {[%emt 0:00:43]} 3. g3 {[%emt 0:00:05]} Nc6 {[%emt 0:00:10]} 4. Bg2 {[%emt 0:00:03]} g6 {[%emt 0:00:10]} 5. d3 {[%emt 0:00:04]} d5 {[%emt 0:00:13]} 6. O-O {[%emt 0:00:06]} Bg7 {[%emt 0:00:04]} 7. c3 {[%emt 0:00:04]} O-O {[%emt 0:00:05]} 8. Na3 {[%emt 0:00:06]} Re8 {[%emt 0:00:42] A03: Bird's Opening with 1...d5.} 9. Nh4 {[%emt 0:00:47]} e5 {[%emt 0:00:45]} 10. f5 $1 {[%emt 0:00:08]} a6 {[%emt 0:05:05]} (10... Ne7 $1 $11) 11. Bg5 $14 {[%emt 0:01:48]} Qd6 {[%emt 0:07:09]} 12. e4 {[%emt 0:11:21] [#] Hoping for exd5.} b5 $146 {[%emt 0:20:29]} ({Predecessor:} 12... d4 13. Nc4 Qd8 14. Qf3 Rf8 15. a4 b6 16. Qd1 Rb8 17. Qb3 Kh8 18. Rad1 b5 19. axb5 axb5 {0-1 (49) Wagner,G (1829)-Hewitt,W (2024) Cardiff 2016}) 13. exd5 {[%emt 0:24:19]} Ne7 {[%emt 0:01:02][%cal Re7f5]} 14. fxg6 {[%emt 0:07:31]} fxg6 {[%emt 0:02:04]} 15. Bxf6 {[%emt 0:14:16]} Bxf6 {[%emt 0:00:03] [#]} 16. Rxf6 {[%emt 0:00:20][%mdl 512]} Qxf6 {[%emt 0:00:03]} 17. d6 $1 {[%emt 0:00:07][%mdl 64] Discovered Attack} Ra7 {[%emt 0:00:36]} 18. dxe7 {[%emt 0:00:13]} Raxe7 {[%emt 0:00:06]} 19. Qf3 {[%emt 0:12:43]} (19. Nc2 $142) 19... Qb6 {[%emt 0:01:02]} 20. Qc6 {[%emt 0:01:24]} Qa7 {[%emt 0:00:40]} (20... Qxc6 $16 21. Bxc6 Rd8) 21. Nxg6 {[%emt 0:10:22]} hxg6 {[%emt 0:00:08]} 22. Qxg6+ {[%emt 0:00:05]} Kh8 {[%emt 0:00:20]} 23. Qh5+ {[%emt 0:00:31]} Kg7 $2 {[%emt 0:01:06]} (23... Kg8 $16) 24. Qg5+ $2 {[%emt 0:00:32]} (24. Be4 $18 c4+ 25. d4) 24... Kh8 {[%emt 0:00:22]} 25. Qh5+ $2 {[%emt 0:01:15]} (25. Rf1 $14 c4+ 26. d4 exd4 27. Qh6+ Kg8 28. Qg6+ Kh8 29. Qh6+ Kg8 30. Bd5+ Be6 31. Rf5 (31. Qg6+ Kh8 $14) 31... d3+ 32. Kf1 Bxd5 33. Qg6+ Kh8 34. Rh5+ Rh7 35. Qxe8+ Bg8 36. Nb1) 25... Kg7 $18 {[%emt 0:00:05]} 26. Be4 {[%emt 0:08:58]} c4+ {[%emt 0:00:30] [#]} 27. d4 $1 {[%emt 0:00:06] Chess con chili.} Rf7 {[%emt 0:00:20][%mdl 32768] Weighted Error Value: White=0.34/Black=0.48. An unexpected result.} 1/2-1/2

[Event "12th WLC Weekend 2022"]
[Site "Eindhoven"]
[Date "2022.05.15"]
[Round "5.13"]
[White "Kools, Jasper"]
[Black "Kools, Thomas"]
[Result "1/2-1/2"]
[ECO "D43"]
[WhiteElo "1774"]
[BlackElo "2160"]
[Annotator "TA"]
[PlyCount "126"]
[EventDate "2022.05.13"]
[EventType "swiss"]
[EventCountry "NED"]
[SourceTitle "playchess.com"]
[Source "ChessBase"]
[SourceQuality "1"]
[TimeControl "5400+30"]

{[%evp 12,126,-13,-22,-19,-34,-37,-35,-37,-61,-66,-66,-74,-66,-64,-77,-68,-71,-72,-60,-33,-31,37,-43,-13,-104,74,96,85,83,86,31,29,8,28,-80,-80,-78,-79,-78,-72,-108,-109,-104,-87,-116,-98,-112,-110,-111,-121,-145,-143,-172,-163,-153,-151,-291,-197,-375,-191,-422,-406,-514,-475,-437,-420,-459,-420,-1899,-1842,-1354,-804,-1467,-1455,-3018,-2214,-29982,-29983,-29986,-29987,-29989,-6299,-29994,-29991,-29991,-29973,-29972,-29974,-29970,-29952,-1058,-60,-48,-48,-292,-43,-61,-8,-8,-8,-8,-8,-206,37,0,0,0,0,-14,0,0,0,-6,48,48,136]} 1. d4 {[%emt 0:00:04]} d5 {[%emt 0:00:21]} 2. c4 {[%emt 0:00:16]} e6 {[%emt 0:00:05]} 3. Nf3 {[%emt 0:00:04]} Nf6 {[%emt 0:00:05]} 4. Nc3 {[%emt 0:00:44]} c6 {[%emt 0:00:07]} 5. Bg5 {[%emt 0:03:10]} h6 {[%emt 0:00:05]} 6. Bh4 {[%emt 0:00:38]} dxc4 {[%emt 0:00:07]} 7. e3 {[%emt 0:01:51]} b5 {[%emt 0:00:45] D43: Semi-Slav: 5 Bg5 h6.} 8. Be2 {[%emt 0:02:18]} Bb7 {[%emt 0:05:00]} 9. O-O {[%emt 0:00:34]} Nbd7 {[%emt 0:00:22] Black is slightly better.} 10. a4 {[%emt 0:02:28]} a6 {[%emt 0:00:15] [#]} 11. Ne4 $146 {[%emt 0:05:46]} ({Predecessor:} 11. b3 b4 12. Na2 c3 13. a5 g5 14. Bg3 Ne4 15. Bc4 h5 16. Qd3 Ndf6 17. Be5 {1-0 (37) Jule,A (1993)-Esmaili,A (1727) Brisbane 2019}) 11... Be7 {[%emt 0:02:10]} 12. Nxf6+ {[%emt 0:01:28]} Nxf6 {[%emt 0:01:19]} 13. Qc2 {[%emt 0:02:59]} O-O {[%emt 0:03:51]} 14. b3 {[%emt 0:00:14]} cxb3 {[%emt 0:00:10]} 15. Qxb3 {[%emt 0:00:06]} Qb6 {[%emt 0:20:10]} 16. Ne5 {[%emt 0:04:05]} Rfd8 {[%emt 0:00:58]} (16... g5 $15 17. Bg3 c5) 17. a5 {[%emt 0:01:15]} ({White should play} 17. Rfc1 $14) 17... Qa7 {[%emt 0:02:34]} (17... Qc7 $5 {[%cal Rc6c5]} 18. Nd3 c5 19. Nxc5 Bd5 $15) 18. Bh5 {[%emt 0:04:00]} Nxh5 $2 {[%emt 0:10:22]} (18... Rf8 $17 {stays on course. ...c5 is the strong threat.} 19. Rfc1 c5 20. dxc5 Nxh5 21. Bxe7 Bd5) 19. Bxe7 $16 {[%emt 0:00:14]} Re8 {[%emt 0:00:06]} 20. Bc5 {[%emt 0:06:08][%mdl 1024] White has strong compensation. White is much more active.} Qb8 {[%emt 0:00:06]} 21. f4 {[%emt 0:00:58]} (21. Qd1 $16 Nf6 22. Qf3) 21... Nf6 $14 {[%emt 0:05:23][%cal Bh5f6,Bf6e4,Be4d2,Bd2f1][%mdl 32]} 22. g4 {[%emt 0:00:45] Strongly threatening g5.} Ne4 {[%emt 0:06:02] Inhibits g5.} 23. Rac1 {[%emt 0:01:25]} (23. g5 $11) 23... Nd2 $17 {[%emt 0:11:08][%csl LRb3,LRf1]} 24. Qa2 {[%emt 0:01:04]} Nxf1 {[%emt 0:00:04]} 25. Rxf1 {[%emt 0:00:04]} f6 {[%emt 0:05:57]} 26. Nf3 {[%emt 0:01:20]} Qd8 {[%emt 0:00:32]} 27. e4 {[%emt 0:00:11][%cal Og4g5]} Qd7 {[%emt 0:00:42]} 28. h4 {[%emt 0:03:55]} Qf7 {[%emt 0:01:56]} 29. Qg2 {[%emt 0:03:38]} Qg6 {[%emt 0:04:43]} 30. Re1 {[%emt 0:00:05]} Bc8 {[%emt 0:01:03]} 31. Kh2 {[%emt 0:07:51]} Rb8 {[%emt 0:01:35]} 32. Qg3 {[%emt 0:00:51]} Rb7 {[%emt 0:00:22]} 33. h5 {[%emt 0:01:03]} Qf7 {[%emt 0:00:09][%cal Oe6e5]} 34. Nh4 {[%emt 0:01:12]} (34. e5 $17 {was worth a try.}) 34... b4 {[%emt 0:04:08][%cal Oe6e5] White must now prevent ...e5!} 35. Ng6 $2 {[%emt 0:00:18]} (35. e5) 35... b3 {[%emt 0:02:48]} (35... e5 $142 36. fxe5 Qa2+ 37. Qg2 Qxg2+ 38. Kxg2 Bxg4) 36. Bb6 $2 {[%emt 0:01:01]} (36. e5) 36... e5 $19 {[%emt 0:03:22]} ({Inferior is} 36... b2 37. e5 $17) 37. fxe5 {[%emt 0:02:18]} fxe5 {[%emt 0:00:05]} 38. Nxe5 {[%emt 0:00:05] [#]} Rxe5 {[%emt 0:00:03][%mdl 512]} 39. dxe5 {[%emt 0:01:18]} b2 {[%emt 0:02:50]} 40. Kh3 {[%emt 0:01:04]} (40. e6 $142 Qxe6 41. Rb1) 40... Qxh5+ {[%emt 0:01:18]} 41. Kg2 {[%emt 0:00:15]} Qf7 {[%emt 0:00:07]} 42. Kh3 {[%emt 0:00:12]} h5 {[%emt 0:00:30]} 43. Qd3 {[%emt 0:00:29]} Bxg4+ {[%emt 0:00:14]} 44. Kg3 {[%emt 0:00:16]} Rd7 {[%emt 0:00:53]} 45. Qc3 {[%emt 0:00:17] [#]} Be2 $1 {[%emt 0:02:10][%mdl 512]} 46. Bd4 {[%emt 0:01:39]} (46. e6 Rd3+) 46... c5 {[%emt 0:03:58]} (46... h4+ $142 47. Kg2 Rxd4 $1 {[%mdl 512]} 48. e6 Qf4 $1 49. e7 Bf3+ $1 {[%mdl 512]} 50. Kf2 Bxe4+ 51. Kg1 Qg5+ 52. Kf2 Rd2+ 53. Re2 Qf4+ 54. Kg1 b1=Q+ 55. Qc1 Qxc1+ 56. Re1 Qxe1#) 47. Qxc5 {[%emt 0:00:11]} Qf3+ {[%emt 0:00:20]} 48. Kh2 {[%emt 0:00:06]} Rf7 {[%emt 0:00:33]} 49. Qc8+ {[%emt 0:00:20]} Kh7 {[%emt 0:00:07]} 50. Qh3 {[%emt 0:00:54]} Qxh3+ {[%emt 0:00:32]} 51. Kxh3 {[%emt 0:00:44] [#] KRB-KRB} Bd3 $2 {[%emt 0:00:07]} (51... Rf1 $1 $19 52. Bxb2 Rxe1) 52. Bxb2 $15 {[%emt 0:00:27]} g5 {[%emt 0:00:27]} 53. Re3 $2 {[%emt 0:07:03] Prevents Rf3+.} (53. e6 $15 Rb7 54. Bf6) 53... Bc4 $2 {[%emt 0:00:50]} ({Better is} 53... Bf1+ $19 54. Kh2 Rf2+ 55. Kg1 Rxb2 56. Kxf1 Rb5) 54. Rc3 $1 {[%emt 0:00:15]} Be6+ {[%emt 0:00:31]} (54... Rc7 $15) 55. Kg2 $1 $11 {[%emt 0:00:38]} h4 {[%emt 0:01:17][%cal Bh5h4,Bh4h3][%mdl 32] aiming for ...g4.} 56. Rc6 {[%emt 0:00:23][%csl LRa6,LRe6]} h3+ {[%emt 0:01:34]} 57. Kg3 $2 {[%emt 0:00:27] [#]} (57. Kg1 $1 $11 {and White is okay.} Bg4 58. Rxa6) 57... Bd7 $2 {[%emt 0:00:04]} (57... g4 $1 $19 {( -> ...Rf3+)} 58. Rc3 (58. Rxe6 $2 Rf3+ 59. Kxg4 h2 $19) 58... Rf1) 58. e6 {[%emt 0:00:21]} (58. Rxa6 $5 {[%cal Re5e6]} g4 59. Rf6 $16) 58... Rf3+ {[%emt 0:00:42]} 59. Kxf3 {[%emt 0:00:43]} Bxc6 {[%emt 0:00:06]} 60. Be5 {[%emt 0:00:44]} Kg8 {[%emt 0:00:35]} 61. Kg4 {[%emt 0:00:56][%csl LRg5,LRh3]} Kf8 {[%emt 0:00:06]} 62. Kxh3 {[%emt 0:01:16]} Ke8 {[%emt 0:00:06]} (62... Ke7 $11) 63. Kg4 {[%emt 0:00:22]} Bb5 {[%emt 0:00:04] And White is the lucky defender.  Weighted Error Value: White=0.82/Black=0.61} (63... Bb7 $14) 1/2-1/2